[Event "Titled Tuesday Blitz June 20 Late 2023"]
[White "Cardoso Cardoso, Jose Gabriel"]
[Black "Bortnyk, Mykola"]
[WhiteFideId "4430492"]
[BlackFideId "14120836"]
[WhiteElo "2484"]
[BlackElo "2592"]
[Result "0-1"]
[Round "9"]
[TimeControl "180+2"]
[Date "2023.06.20"]
[WhiteClock "0:00:16"]
[BlackClock "0:00:52"]
[Board "10"]

1. e4 {[%clk 0:03:00]}  Nf6 {[%clk 0:02:56]} 2. e5 {[%clk 0:02:59]}  Nd5 {[%clk 0:02:57]} 3. d4 {[%clk 0:02:58]}  d6 {[%clk 0:02:57]} 4. Nf3 {[%clk 0:02:57]}  dxe5 {[%clk 0:02:58]} 5. Nxe5 {[%clk 0:02:57]}  c6 {[%clk 0:02:59]} 6. Bc4 {[%clk 0:02:49]}  Bf5 {[%clk 0:02:58]} 7. O-O {[%clk 0:02:46]}  Nd7 {[%clk 0:02:59]} 8. Nf3 {[%clk 0:02:43]}  e6 {[%clk 0:02:58]} 9. h3 {[%clk 0:02:43]}  Bd6 {[%clk 0:02:58]} 10. Re1 {[%clk 0:02:41]}  O-O {[%clk 0:02:57]} 11. Nbd2 {[%clk 0:02:37]}  Re8 {[%clk 0:02:51]} 12. Ne4 {[%clk 0:02:35]}  Bc7 {[%clk 0:02:46]} 13. Bg5 {[%clk 0:02:30]}  Qb8 {[%clk 0:02:42]} 14. c3 {[%clk 0:02:28]}  Bf4 {[%clk 0:02:30]} 15. Bxf4 {[%clk 0:02:25]}  Qxf4 {[%clk 0:02:30]} 16. Ng3 {[%clk 0:02:18]}  Bg6 {[%clk 0:02:30]} 17. Qc1 {[%clk 0:02:09]}  Qd6 {[%clk 0:02:26]} 18. h4 {[%clk 0:02:00]}  b5 {[%clk 0:02:19]} 19. Bxd5 {[%clk 0:01:49]}  exd5 {[%clk 0:02:19]} 20. Qd2 {[%clk 0:01:30]}  Be4 {[%clk 0:02:16]} 21. Ng5 {[%clk 0:01:28]}  Nf6 {[%clk 0:02:16]} 22. Re2 {[%clk 0:01:23]}  h6 {[%clk 0:01:58]} 23. N5xe4 {[%clk 0:01:22]}  Nxe4 {[%clk 0:01:58]} 24. Nxe4 {[%clk 0:01:22]}  Rxe4 {[%clk 0:01:59]} 25. g3 {[%clk 0:01:05]}  Rae8 {[%clk 0:01:55]} 26. Rae1 {[%clk 0:01:05]}  f5 {[%clk 0:01:54]} 27. Qd3 {[%clk 0:01:01]}  Qe6 {[%clk 0:01:36]} 28. Kf1 {[%clk 0:01:00]}  f4 {[%clk 0:01:35]} 29. gxf4 {[%clk 0:00:52]}  Qf5 {[%clk 0:01:31]} 30. Rxe4 {[%clk 0:00:47]}  dxe4 {[%clk 0:01:31]} 31. Qe3 {[%clk 0:00:44]}  Re6 {[%clk 0:01:28]} 32. b3 {[%clk 0:00:41]}  Rg6 {[%clk 0:01:17]} 33. c4 {[%clk 0:00:40]}  bxc4 {[%clk 0:01:16]} 34. bxc4 {[%clk 0:00:41]}  Qg4 {[%clk 0:01:13]} 35. d5 {[%clk 0:00:40]}  cxd5 {[%clk 0:01:11]} 36. cxd5 {[%clk 0:00:40]}  Qg2+ {[%clk 0:01:05]} 37. Ke2 {[%clk 0:00:40]}  Rb6 {[%clk 0:01:04]} 38. Rd1 {[%clk 0:00:36]}  Qg4+ {[%clk 0:01:00]} 39. Ke1 {[%clk 0:00:30]}  Qg1+ {[%clk 0:00:59]} 40. Ke2 {[%clk 0:00:30]}  Rb2+ {[%clk 0:00:59]} 41. Rd2 {[%clk 0:00:28]}  Qg4+ {[%clk 0:00:58]} 42. f3 {[%clk 0:00:22]}  Qg2+ {[%clk 0:00:54]} 43. Kd1 {[%clk 0:00:23]}  Qf1+ {[%clk 0:00:52]} 44. Qe1 {[%clk 0:00:16]}  Rb1+ {[%clk 0:00:52]} 0-1


[Site "https://www.chess.com"]

[Event "Titled Tuesday Blitz June 20 Late 2023"]
[White "Eljanov, Pavel"]
[Black "Bryakin, Mikhail"]
[WhiteFideId "14102951"]
[BlackFideId "4165314"]
[WhiteElo "2598"]
[BlackElo "2464"]
[Result "1-0"]
[Round "9"]
[TimeControl "180+2"]
[Date "2023.06.20"]
[WhiteClock "0:00:07"]
[BlackClock "0:00:00"]
[Board "12"]

1. d4 {[%clk 0:03:00]}  Nf6 {[%clk 0:02:55]} 2. c4 {[%clk 0:03:01]}  e6 {[%clk 0:02:56]} 3. Nc3 {[%clk 0:03:01]}  a6 {[%clk 0:02:54]} 4. e4 {[%clk 0:02:59]}  b5 {[%clk 0:02:37]} 5. e5 {[%clk 0:02:34]}  b4 {[%clk 0:02:27]} 6. exf6 {[%clk 0:02:27]}  bxc3 {[%clk 0:02:27]} 7. fxg7 {[%clk 0:02:26]}  Bxg7 {[%clk 0:02:27]} 8. bxc3 {[%clk 0:02:26]}  c5 {[%clk 0:02:19]} 9. Nf3 {[%clk 0:02:22]}  Nc6 {[%clk 0:02:19]} 10. Be2 {[%clk 0:02:13]}  Qa5 {[%clk 0:02:04]} 11. Bd2 {[%clk 0:02:11]}  Qa3 {[%clk 0:02:03]} 12. Rb1 {[%clk 0:01:52]}  cxd4 {[%clk 0:01:59]} 13. cxd4 {[%clk 0:01:45]}  Nxd4 {[%clk 0:01:43]} 14. Nxd4 {[%clk 0:01:45]}  Bxd4 {[%clk 0:01:42]} 15. O-O {[%clk 0:01:46]}  Qe7 {[%clk 0:01:10]} 16. Bf3 {[%clk 0:01:38]}  Ra7 {[%clk 0:01:10]} 17. Rb8 {[%clk 0:01:08]}  O-O {[%clk 0:00:46]} 18. Bh6 {[%clk 0:01:05]}  Be5 {[%clk 0:00:41]} 19. Bxf8 {[%clk 0:00:33]}  Qxf8 {[%clk 0:00:42]} 20. Rb3 {[%clk 0:00:30]}  Rc7 {[%clk 0:00:42]} 21. Qe2 {[%clk 0:00:22]}  Qc5 {[%clk 0:00:42]} 22. Be4 {[%clk 0:00:16]}  Qxc4 {[%clk 0:00:26]} 23. Bxh7+ {[%clk 0:00:15]}  Kxh7 {[%clk 0:00:06]} 24. Qxe5 {[%clk 0:00:16]}  f5 {[%clk 0:00:04]} 25. Rh3+ {[%clk 0:00:16]}  Kg6 {[%clk 0:00:04]} 26. Rg3+ {[%clk 0:00:16]}  Kf7 {[%clk 0:00:05]} 27. Rg7+ {[%clk 0:00:15]}  Ke8 {[%clk 0:00:06]} 28. Qf6 {[%clk 0:00:14]}  d6 {[%clk 0:00:04]} 29. Rg8+ {[%clk 0:00:09]}  Kd7 {[%clk 0:00:04]} 30. Qd8+ {[%clk 0:00:09]}  Kc6 {[%clk 0:00:04]} 31. Qxc8 {[%clk 0:00:10]}  Qe2 {[%clk 0:00:03]} 32. Qa8+ {[%clk 0:00:09]}  Kc5 {[%clk 0:00:03]} 33. Rc8 {[%clk 0:00:08]}  Rxc8 {[%clk 0:00:02]} 34. Qxc8+ {[%clk 0:00:09]}  Kd4 {[%clk 0:00:03]} 35. a3 {[%clk 0:00:08]}  f4 {[%clk 0:00:03]} 36. Qc1 {[%clk 0:00:07]}  f3 {[%clk 0:00:03]} 37. Rd1+ {[%clk 0:00:07]}  Ke5 {[%clk 0:00:00]} 38. Re1 {[%clk 0:00:07]} 1-0


[Site "https://www.chess.com"]

[Event "Titled Tuesday Blitz June 20 Late 2023"]
[White "Makridis, Dimitrios"]
[Black "Makhnev, Denis"]
[WhiteFideId "25864475"]
[BlackFideId "13707647"]
[WhiteElo "2277"]
[BlackElo "2515"]
[Result "0-1"]
[Round "9"]
[TimeControl "180+2"]
[Date "2023.06.20"]
[WhiteClock "0:00:14"]
[BlackClock "0:02:02"]
[Board "20"]

1. e4 {[%clk 0:02:57]}  g6 {[%clk 0:02:59]} 2. h4 {[%clk 0:02:56]}  d5 {[%clk 0:02:58]} 3. e5 {[%clk 0:02:55]}  h5 {[%clk 0:02:51]} 4. d4 {[%clk 0:02:55]}  c5 {[%clk 0:02:51]} 5. c3 {[%clk 0:02:55]}  Nc6 {[%clk 0:02:51]} 6. Nf3 {[%clk 0:02:53]}  Bg4 {[%clk 0:02:50]} 7. Be2 {[%clk 0:02:50]}  e6 {[%clk 0:02:50]} 8. Be3 {[%clk 0:02:43]}  Bxf3 {[%clk 0:02:47]} 9. Bxf3 {[%clk 0:02:43]}  cxd4 {[%clk 0:02:48]} 10. cxd4 {[%clk 0:02:43]}  Nge7 {[%clk 0:02:48]} 11. g3 {[%clk 0:02:39]}  Nf5 {[%clk 0:02:48]} 12. O-O {[%clk 0:02:40]}  Bh6 {[%clk 0:02:41]} 13. Bxh6 {[%clk 0:02:25]}  Rxh6 {[%clk 0:02:42]} 14. Nc3 {[%clk 0:02:19]}  Nfxd4 {[%clk 0:02:42]} 15. Bg2 {[%clk 0:02:20]}  Kf8 {[%clk 0:02:42]} 16. Re1 {[%clk 0:02:18]}  Kg7 {[%clk 0:02:42]} 17. Rc1 {[%clk 0:02:16]}  Rh8 {[%clk 0:02:38]} 18. Qd2 {[%clk 0:02:14]}  Qe7 {[%clk 0:02:35]} 19. Qf4 {[%clk 0:02:09]}  Rac8 {[%clk 0:02:34]} 20. Rcd1 {[%clk 0:01:42]}  Nf5 {[%clk 0:02:33]} 21. a3 {[%clk 0:01:40]}  Na5 {[%clk 0:02:27]} 22. Nb5 {[%clk 0:01:15]}  Rc4 {[%clk 0:02:19]} 23. Qd2 {[%clk 0:01:12]}  Nb3 {[%clk 0:02:19]} 24. Qd3 {[%clk 0:01:12]}  Nc5 {[%clk 0:02:19]} 25. Qe2 {[%clk 0:01:10]}  a6 {[%clk 0:02:18]} 26. Nd6 {[%clk 0:01:09]}  Nxd6 {[%clk 0:02:18]} 27. exd6 {[%clk 0:01:10]}  Qf6 {[%clk 0:02:18]} 28. b4 {[%clk 0:01:03]}  Nb3 {[%clk 0:02:05]} 29. Rd3 {[%clk 0:00:35]}  Nd4 {[%clk 0:02:05]} 30. Qd2 {[%clk 0:00:25]}  Rd8 {[%clk 0:02:05]} 31. Rd1 {[%clk 0:00:19]}  Rc2 {[%clk 0:02:01]} 32. Qe3 {[%clk 0:00:19]}  Nf5 {[%clk 0:02:01]} 33. Qb6 {[%clk 0:00:19]}  Rxd6 {[%clk 0:02:02]} 34. Qxb7 {[%clk 0:00:14]}  Nxh4 {[%clk 0:02:02]} 0-1


[Site "https://www.chess.com"]

[Event "Titled Tuesday Blitz June 20 Late 2023"]
[White "MaryanKyrychenko"]
[Black "Maksimovic, Bojan"]
[BlackFideId "14408120"]
[WhiteElo "2562"]
[BlackElo "2457"]
[Result "1-0"]
[Round "9"]
[TimeControl "180+2"]
[Date "2023.06.20"]
[WhiteClock "0:00:23"]
[BlackClock "0:01:45"]
[Board "24"]

1. e4 {[%clk 0:02:56]}  c5 {[%clk 0:02:55]} 2. Nc3 {[%clk 0:02:53]}  e6 {[%clk 0:02:47]} 3. f4 {[%clk 0:02:50]}  d5 {[%clk 0:02:37]} 4. Nf3 {[%clk 0:02:48]}  dxe4 {[%clk 0:02:36]} 5. Nxe4 {[%clk 0:02:47]}  Be7 {[%clk 0:02:37]} 6. Bb5+ {[%clk 0:02:47]}  Bd7 {[%clk 0:02:36]} 7. Bxd7+ {[%clk 0:02:47]}  Qxd7 {[%clk 0:02:36]} 8. d3 {[%clk 0:02:48]}  Nc6 {[%clk 0:02:37]} 9. O-O {[%clk 0:02:48]}  Nf6 {[%clk 0:02:37]} 10. Be3 {[%clk 0:02:44]}  b6 {[%clk 0:02:36]} 11. Qe2 {[%clk 0:02:42]}  O-O {[%clk 0:02:36]} 12. Rad1 {[%clk 0:02:41]}  Qc7 {[%clk 0:02:34]} 13. g3 {[%clk 0:02:11]}  Rad8 {[%clk 0:02:27]} 14. Rfe1 {[%clk 0:02:11]}  Rd5 {[%clk 0:02:26]} 15. Nc3 {[%clk 0:02:07]}  Rd7 {[%clk 0:02:26]} 16. d4 {[%clk 0:02:00]}  cxd4 {[%clk 0:02:22]} 17. Nb5 {[%clk 0:01:57]}  Qb7 {[%clk 0:02:19]} 18. Nbxd4 {[%clk 0:01:57]}  Nxd4 {[%clk 0:02:18]} 19. Bxd4 {[%clk 0:01:46]}  Rfd8 {[%clk 0:02:17]} 20. c3 {[%clk 0:01:44]}  Bc5 {[%clk 0:02:17]} 21. b4 {[%clk 0:01:40]}  Bxd4+ {[%clk 0:02:16]} 22. Rxd4 {[%clk 0:01:39]}  Rxd4 {[%clk 0:02:16]} 23. Nxd4 {[%clk 0:01:40]}  Nd5 {[%clk 0:02:16]} 24. Qf3 {[%clk 0:01:12]}  Qc8 {[%clk 0:02:06]} 25. f5 {[%clk 0:01:06]}  exf5 {[%clk 0:01:56]} 26. Nxf5 {[%clk 0:00:59]}  Qxc3 {[%clk 0:01:56]} 27. Qe4 {[%clk 0:00:26]}  g6 {[%clk 0:01:45]} 28. Qe8+ {[%clk 0:00:23]} 1-0


[Site "https://www.chess.com"]

[Event "Titled Tuesday Blitz June 20 Late 2023"]
[White "Haszon, David"]
[Black "Maximov, Dmitry"]
[WhiteFideId "733610"]
[BlackFideId "14105659"]
[WhiteElo "2210"]
[BlackElo "2494"]
[Result "1-0"]
[Round "9"]
[TimeControl "180+2"]
[Date "2023.06.20"]
[WhiteClock "0:00:25"]
[BlackClock "0:00:10"]
[Board "25"]

1. d4 {[%clk 0:03:00]}  Nf6 {[%clk 0:03:00]} 2. Bf4 {[%clk 0:02:59]}  d6 {[%clk 0:02:59]} 3. Nc3 {[%clk 0:02:58]}  Nfd7 {[%clk 0:02:59]} 4. Nf3 {[%clk 0:02:56]}  Nc6 {[%clk 0:02:58]} 5. Qd2 {[%clk 0:02:55]}  e5 {[%clk 0:02:56]} 6. dxe5 {[%clk 0:02:50]}  dxe5 {[%clk 0:02:55]} 7. Bg5 {[%clk 0:02:44]}  f6 {[%clk 0:02:44]} 8. Bh4 {[%clk 0:02:39]}  Nb6 {[%clk 0:02:44]} 9. Qxd8+ {[%clk 0:02:34]}  Nxd8 {[%clk 0:02:44]} 10. Nb5 {[%clk 0:02:32]}  Ne6 {[%clk 0:02:43]} 11. e3 {[%clk 0:02:26]}  c6 {[%clk 0:02:37]} 12. Nc3 {[%clk 0:02:24]}  Bb4 {[%clk 0:02:35]} 13. O-O-O {[%clk 0:02:18]}  Bxc3 {[%clk 0:02:23]} 14. bxc3 {[%clk 0:02:19]}  Nc5 {[%clk 0:02:17]} 15. Bg3 {[%clk 0:01:48]}  Be6 {[%clk 0:02:16]} 16. a3 {[%clk 0:01:38]}  Nba4 {[%clk 0:02:09]} 17. c4 {[%clk 0:01:31]}  Ke7 {[%clk 0:01:48]} 18. Nd2 {[%clk 0:01:25]}  Nc3 {[%clk 0:01:45]} 19. Re1 {[%clk 0:01:23]}  Rhd8 {[%clk 0:01:45]} 20. Nb3 {[%clk 0:01:19]}  N5a4 {[%clk 0:01:45]} 21. f4 {[%clk 0:01:14]}  e4 {[%clk 0:01:39]} 22. Nd4 {[%clk 0:01:11]}  c5 {[%clk 0:01:25]} 23. Nxe6 {[%clk 0:01:03]}  Kxe6 {[%clk 0:01:24]} 24. Be2 {[%clk 0:00:58]}  f5 {[%clk 0:01:24]} 25. Bh4 {[%clk 0:00:58]}  Rd6 {[%clk 0:01:23]} 26. g4 {[%clk 0:00:58]}  g6 {[%clk 0:01:09]} 27. gxf5+ {[%clk 0:00:58]}  gxf5 {[%clk 0:01:10]} 28. Rhg1 {[%clk 0:00:52]}  Nxe2+ {[%clk 0:00:52]} 29. Rxe2 {[%clk 0:00:53]}  Nc3 {[%clk 0:00:52]} 30. Reg2 {[%clk 0:00:45]}  b5 {[%clk 0:00:49]} 31. Kb2 {[%clk 0:00:40]}  Na4+ {[%clk 0:00:48]} 32. Kb3 {[%clk 0:00:34]}  a6 {[%clk 0:00:26]} 33. Rg7 {[%clk 0:00:35]}  Re8 {[%clk 0:00:25]} 34. Rxh7 {[%clk 0:00:34]}  bxc4+ {[%clk 0:00:14]} 35. Kxa4 {[%clk 0:00:33]}  Kd5 {[%clk 0:00:13]} 36. Rd1+ {[%clk 0:00:33]}  Kc6 {[%clk 0:00:13]} 37. Rxd6+ {[%clk 0:00:33]}  Kxd6 {[%clk 0:00:14]} 38. Bg5 {[%clk 0:00:28]}  c3 {[%clk 0:00:13]} 39. Kb3 {[%clk 0:00:27]}  Rb8+ {[%clk 0:00:12]} 40. Kxc3 {[%clk 0:00:28]}  Rb1 {[%clk 0:00:12]} 41. Rh6+ {[%clk 0:00:28]}  Kd5 {[%clk 0:00:13]} 42. Rxa6 {[%clk 0:00:28]}  Rh1 {[%clk 0:00:13]} 43. Be7 {[%clk 0:00:25]}  Rxh2 {[%clk 0:00:10]} 44. Rd6# {[%clk 0:00:25]} 1-0


[Site "https://www.chess.com"]

[Event "Titled Tuesday Blitz June 20 Late 2023"]
[White "Czerw, Dawid"]
[Black "Nazari, Arad"]
[WhiteFideId "1145746"]
[BlackFideId "12577324"]
[WhiteElo "2144"]
[BlackElo "2175"]
[Result "0-1"]
[Round "9"]
[TimeControl "180+2"]
[Date "2023.06.20"]
[WhiteClock "0:00:00"]
[BlackClock "0:00:21"]
[Board "26"]

1. e4 {[%clk 0:03:00]}  e6 {[%clk 0:02:55]} 2. d4 {[%clk 0:03:00]}  d5 {[%clk 0:02:55]} 3. Nc3 {[%clk 0:03:01]}  Nf6 {[%clk 0:02:54]} 4. Bg5 {[%clk 0:03:00]}  dxe4 {[%clk 0:02:48]} 5. Nxe4 {[%clk 0:03:01]}  Be7 {[%clk 0:02:48]} 6. Bxf6 {[%clk 0:03:02]}  gxf6 {[%clk 0:02:47]} 7. Nf3 {[%clk 0:03:02]}  f5 {[%clk 0:02:32]} 8. Nc3 {[%clk 0:03:02]}  a6 {[%clk 0:02:32]} 9. g3 {[%clk 0:03:02]}  b5 {[%clk 0:02:26]} 10. Bg2 {[%clk 0:03:02]}  Bb7 {[%clk 0:02:27]} 11. O-O {[%clk 0:03:02]}  O-O {[%clk 0:02:26]} 12. Ne2 {[%clk 0:03:00]}  c5 {[%clk 0:02:14]} 13. Nf4 {[%clk 0:03:00]}  cxd4 {[%clk 0:02:02]} 14. Nxd4 {[%clk 0:03:01]}  Bxg2 {[%clk 0:02:00]} 15. Kxg2 {[%clk 0:03:01]}  Ra7 {[%clk 0:01:16]} 16. Re1 {[%clk 0:02:33]}  Bf6 {[%clk 0:01:12]} 17. Nb3 {[%clk 0:01:29]}  Bxb2 {[%clk 0:01:09]} 18. Rb1 {[%clk 0:01:25]}  Qxd1 {[%clk 0:01:06]} 19. Rexd1 {[%clk 0:01:26]}  Ba3 {[%clk 0:01:06]} 20. Nh5 {[%clk 0:01:19]}  Rc8 {[%clk 0:01:04]} 21. Rd2 {[%clk 0:01:16]}  Bb4 {[%clk 0:00:53]} 22. Rd3 {[%clk 0:01:09]}  Be7 {[%clk 0:00:54]} 23. Rbd1 {[%clk 0:01:06]}  Kf8 {[%clk 0:00:54]} 24. R1d2 {[%clk 0:00:57]}  Nc6 {[%clk 0:00:52]} 25. c3 {[%clk 0:00:43]}  Ne5 {[%clk 0:00:48]} 26. Rd4 {[%clk 0:00:38]}  Rxc3 {[%clk 0:00:46]} 27. Nf4 {[%clk 0:00:38]}  Rc4 {[%clk 0:00:36]} 28. Rxc4 {[%clk 0:00:35]}  Nxc4 {[%clk 0:00:37]} 29. Re2 {[%clk 0:00:33]}  Rd7 {[%clk 0:00:32]} 30. h4 {[%clk 0:00:31]}  Bd6 {[%clk 0:00:29]} 31. Nh3 {[%clk 0:00:27]}  Be7 {[%clk 0:00:28]} 32. Nf4 {[%clk 0:00:27]}  a5 {[%clk 0:00:26]} 33. Rc2 {[%clk 0:00:18]}  a4 {[%clk 0:00:26]} 34. Nc1 {[%clk 0:00:17]}  Rd2 {[%clk 0:00:22]} 35. Rxd2 {[%clk 0:00:18]}  Nxd2 {[%clk 0:00:22]} 36. Ncd3 {[%clk 0:00:17]}  b4 {[%clk 0:00:22]} 37. Ne2 {[%clk 0:00:16]}  b3 {[%clk 0:00:21]} 38. axb3 {[%clk 0:00:15]}  axb3 {[%clk 0:00:22]} 39. Nec1 {[%clk 0:00:14]}  Bf6 {[%clk 0:00:20]} 40. Ne2 {[%clk 0:00:06]}  b2 {[%clk 0:00:20]} 41. Nxb2 {[%clk 0:00:03]}  Bxb2 {[%clk 0:00:21]} 42. Nf4 {[%clk 0:00:00]}  Be5 {[%clk 0:00:21]} 0-1


[Site "https://www.chess.com"]

[Event "Titled Tuesday Blitz June 20 Late 2023"]
[White "Oro, Faustino"]
[Black "Kovalevsky, Stanislav"]
[WhiteFideId "20000197"]
[BlackFideId "13508598"]
[WhiteElo "1984"]
[BlackElo "2112"]
[Result "1-0"]
[Round "9"]
[TimeControl "180+2"]
[Date "2023.06.20"]
[WhiteClock "0:00:15"]
[BlackClock "0:00:03"]
[Board "27"]

1. d4 {[%clk 0:03:00]}  Nf6 {[%clk 0:02:59]} 2. Nf3 {[%clk 0:02:59]}  d5 {[%clk 0:02:59]} 3. g3 {[%clk 0:02:59]}  c6 {[%clk 0:02:58]} 4. Bg2 {[%clk 0:03:00]}  Bg4 {[%clk 0:02:52]} 5. O-O {[%clk 0:02:59]}  Qc8 {[%clk 0:02:51]} 6. c4 {[%clk 0:02:56]}  Bh3 {[%clk 0:02:51]} 7. Nbd2 {[%clk 0:02:54]}  Bxg2 {[%clk 0:02:51]} 8. Kxg2 {[%clk 0:02:55]}  e6 {[%clk 0:02:50]} 9. Qc2 {[%clk 0:02:54]}  Nbd7 {[%clk 0:02:49]} 10. e4 {[%clk 0:02:54]}  dxe4 {[%clk 0:02:50]} 11. Nxe4 {[%clk 0:02:54]}  Nxe4 {[%clk 0:02:50]} 12. Qxe4 {[%clk 0:02:55]}  Nf6 {[%clk 0:02:51]} 13. Qe2 {[%clk 0:02:55]}  Be7 {[%clk 0:02:50]} 14. b3 {[%clk 0:02:55]}  O-O {[%clk 0:02:50]} 15. Bb2 {[%clk 0:02:56]}  Rd8 {[%clk 0:02:49]} 16. Rad1 {[%clk 0:02:54]}  Qc7 {[%clk 0:02:48]} 17. Rfe1 {[%clk 0:02:54]}  Rd7 {[%clk 0:02:48]} 18. Ne5 {[%clk 0:02:51]}  Rdd8 {[%clk 0:02:47]} 19. Qe3 {[%clk 0:02:23]}  a5 {[%clk 0:02:38]} 20. Bc3 {[%clk 0:02:15]}  a4 {[%clk 0:02:37]} 21. Qe2 {[%clk 0:02:00]}  Bf8 {[%clk 0:02:24]} 22. Qc2 {[%clk 0:01:57]}  c5 {[%clk 0:02:02]} 23. dxc5 {[%clk 0:01:54]}  Qxc5 {[%clk 0:01:54]} 24. Nf3 {[%clk 0:01:50]}  Qc6 {[%clk 0:01:44]} 25. Bxf6 {[%clk 0:01:35]}  gxf6 {[%clk 0:01:44]} 26. Qc3 {[%clk 0:01:35]}  Bg7 {[%clk 0:01:30]} 27. Qb4 {[%clk 0:01:22]}  axb3 {[%clk 0:01:20]} 28. axb3 {[%clk 0:01:22]}  f5 {[%clk 0:01:18]} 29. Qe7 {[%clk 0:01:14]}  Re8 {[%clk 0:00:43]} 30. Qd7 {[%clk 0:01:13]}  Qb6 {[%clk 0:00:34]} 31. Ng5 {[%clk 0:00:56]}  Rf8 {[%clk 0:00:20]} 32. Qd3 {[%clk 0:00:48]}  Ra2 {[%clk 0:00:18]} 33. Rf1 {[%clk 0:00:40]}  Rb2 {[%clk 0:00:18]} 34. Rb1 {[%clk 0:00:36]}  Rd8 {[%clk 0:00:15]} 35. Qf3 {[%clk 0:00:37]}  Rxb1 {[%clk 0:00:13]} 36. Rxb1 {[%clk 0:00:36]}  h6 {[%clk 0:00:13]} 37. Nh3 {[%clk 0:00:36]}  Rd2 {[%clk 0:00:13]} 38. b4 {[%clk 0:00:33]}  Qd4 {[%clk 0:00:13]} 39. c5 {[%clk 0:00:28]}  Qd5 {[%clk 0:00:13]} 40. Nf4 {[%clk 0:00:20]}  Qxf3+ {[%clk 0:00:11]} 41. Kxf3 {[%clk 0:00:21]}  Bd4 {[%clk 0:00:11]} 42. Ne2 {[%clk 0:00:21]}  e5 {[%clk 0:00:09]} 43. Nxd4 {[%clk 0:00:19]}  Rxd4 {[%clk 0:00:10]} 44. Ke3 {[%clk 0:00:18]}  Kf8 {[%clk 0:00:08]} 45. b5 {[%clk 0:00:17]}  Rc4 {[%clk 0:00:07]} 46. c6 {[%clk 0:00:17]}  b6 {[%clk 0:00:05]} 47. Ra1 {[%clk 0:00:15]}  Ke7 {[%clk 0:00:05]} 48. Ra7+ {[%clk 0:00:16]}  Ke6 {[%clk 0:00:05]} 49. Rb7 {[%clk 0:00:16]}  Rc3+ {[%clk 0:00:04]} 50. Ke2 {[%clk 0:00:16]}  Kd5 {[%clk 0:00:03]} 51. Rxb6 {[%clk 0:00:16]}  f4 {[%clk 0:00:02]} 52. gxf4 {[%clk 0:00:16]}  exf4 {[%clk 0:00:02]} 53. Rb7 {[%clk 0:00:16]}  f3+ {[%clk 0:00:01]} 54. Kd2 {[%clk 0:00:16]}  Rb3 {[%clk 0:00:01]} 55. c7 {[%clk 0:00:14]}  Rb2+ {[%clk 0:00:02]} 56. Kc3 {[%clk 0:00:14]}  Rxf2 {[%clk 0:00:02]} 57. c8=Q {[%clk 0:00:14]}  Rf1 {[%clk 0:00:03]} 58. Qf5+ {[%clk 0:00:14]}  Kd6 {[%clk 0:00:03]} 59. Rd7# {[%clk 0:00:15]} 1-0


[Site "https://www.chess.com"]

[Event "Titled Tuesday Blitz June 20 Late 2023"]
[White "TimGrutter03"]
[Black "Licznerski, Lukasz"]
[BlackFideId "1179250"]
[WhiteElo "2619"]
[BlackElo "2453"]
[Result "0-1"]
[Round "9"]
[TimeControl "180+2"]
[Date "2023.06.20"]
[WhiteClock "0:00:00"]
[BlackClock "0:00:08"]
[Board "28"]

1. d4 {[%clk 0:03:00]}  Nf6 {[%clk 0:02:53]} 2. Nc3 {[%clk 0:03:01]}  d5 {[%clk 0:02:51]} 3. Bf4 {[%clk 0:02:58]}  a6 {[%clk 0:02:46]} 4. e3 {[%clk 0:02:58]}  e6 {[%clk 0:02:45]} 5. g4 {[%clk 0:02:57]}  Bd6 {[%clk 0:02:34]} 6. g5 {[%clk 0:02:56]}  Bxf4 {[%clk 0:02:27]} 7. gxf6 {[%clk 0:02:53]}  Bd6 {[%clk 0:02:23]} 8. fxg7 {[%clk 0:02:48]}  Rg8 {[%clk 0:02:24]} 9. Qh5 {[%clk 0:02:20]}  Rxg7 {[%clk 0:02:24]} 10. O-O-O {[%clk 0:02:16]}  Qg5 {[%clk 0:02:01]} 11. Qxg5 {[%clk 0:01:47]}  Rxg5 {[%clk 0:02:01]} 12. f4 {[%clk 0:01:48]}  Rg7 {[%clk 0:01:56]} 13. Nf3 {[%clk 0:01:46]}  Nc6 {[%clk 0:01:42]} 14. Ne5 {[%clk 0:01:44]}  Nxe5 {[%clk 0:01:23]} 15. fxe5 {[%clk 0:01:45]}  Be7 {[%clk 0:01:23]} 16. Bd3 {[%clk 0:01:36]}  c5 {[%clk 0:01:15]} 17. Rhg1 {[%clk 0:01:16]}  Bg5 {[%clk 0:01:14]} 18. Kb1 {[%clk 0:01:17]}  Kf8 {[%clk 0:01:14]} 19. Rg3 {[%clk 0:01:06]}  Bxe3 {[%clk 0:00:53]} 20. Rxe3 {[%clk 0:00:50]}  cxd4 {[%clk 0:00:53]} 21. Rf3 {[%clk 0:00:21]}  dxc3 {[%clk 0:00:52]} 22. bxc3 {[%clk 0:00:22]}  Bd7 {[%clk 0:00:47]} 23. Rdf1 {[%clk 0:00:21]}  Rc8 {[%clk 0:00:42]} 24. Kb2 {[%clk 0:00:21]}  Be8 {[%clk 0:00:36]} 25. h4 {[%clk 0:00:19]}  Kg8 {[%clk 0:00:35]} 26. Rf6 {[%clk 0:00:13]}  Rc5 {[%clk 0:00:25]} 27. R1f4 {[%clk 0:00:12]}  Bb5 {[%clk 0:00:25]} 28. h5 {[%clk 0:00:09]}  Be8 {[%clk 0:00:20]} 29. h6 {[%clk 0:00:04]}  Rg5 {[%clk 0:00:20]} 30. Rf1 {[%clk 0:00:02]}  Rc8 {[%clk 0:00:17]} 31. R6f2 {[%clk 0:00:01]}  Rh5 {[%clk 0:00:12]} 32. Re1 {[%clk 0:00:01]}  Rxh6 {[%clk 0:00:11]} 33. Rg2+ {[%clk 0:00:02]}  Kf8 {[%clk 0:00:11]} 34. Reg1 {[%clk 0:00:02]}  Rh5 {[%clk 0:00:11]} 35. Rg7 {[%clk 0:00:02]}  h6 {[%clk 0:00:10]} 36. Rh7 {[%clk 0:00:02]}  Rxe5 {[%clk 0:00:08]} 37. Rxh6 {[%clk 0:00:03]}  Ke7 {[%clk 0:00:08]} 38. Rh7 {[%clk 0:00:02]}  Re3 {[%clk 0:00:06]} 39. Rgg7 {[%clk 0:00:03]}  Rc7 {[%clk 0:00:05]} 40. Bg6 {[%clk 0:00:02]}  Kf6 {[%clk 0:00:05]} 41. Bd3 {[%clk 0:00:02]}  Rf3 {[%clk 0:00:05]} 42. Rg8 {[%clk 0:00:02]}  Bb5 {[%clk 0:00:04]} 43. Bxb5 {[%clk 0:00:02]}  axb5 {[%clk 0:00:04]} 44. Rh6+ {[%clk 0:00:02]}  Ke7 {[%clk 0:00:04]} 45. Rh7 {[%clk 0:00:02]}  Rfxc3 {[%clk 0:00:04]} 46. Rgg7 {[%clk 0:00:02]}  Rxc2+ {[%clk 0:00:05]} 47. Kb3 {[%clk 0:00:03]}  Rf2 {[%clk 0:00:05]} 48. Kb4 {[%clk 0:00:02]}  Rcc2 {[%clk 0:00:05]} 49. Kxb5 {[%clk 0:00:02]}  Rxa2 {[%clk 0:00:05]} 50. Kb6 {[%clk 0:00:03]}  Rab2+ {[%clk 0:00:05]} 51. Kc5 {[%clk 0:00:03]}  Rbc2+ {[%clk 0:00:05]} 52. Kd4 {[%clk 0:00:02]}  b5 {[%clk 0:00:05]} 53. Rg1 {[%clk 0:00:01]}  b4 {[%clk 0:00:05]} 54. Rb1 {[%clk 0:00:01]}  Rc4+ {[%clk 0:00:06]} 55. Kd3 {[%clk 0:00:02]}  Rf3+ {[%clk 0:00:06]} 56. Ke2 {[%clk 0:00:02]}  Ra3 {[%clk 0:00:05]} 57. Rh8 {[%clk 0:00:02]}  b3 {[%clk 0:00:05]} 58. Rb8 {[%clk 0:00:03]}  Rc2+ {[%clk 0:00:06]} 59. Kd1 {[%clk 0:00:02]}  Rh2 {[%clk 0:00:06]} 60. Rb7+ {[%clk 0:00:02]}  Kf6 {[%clk 0:00:06]} 61. R1xb3 {[%clk 0:00:02]}  Rxb3 {[%clk 0:00:06]} 62. Rxb3 {[%clk 0:00:03]}  d4 {[%clk 0:00:06]} 63. Rf3+ {[%clk 0:00:02]}  Ke7 {[%clk 0:00:06]} 64. Ke1 {[%clk 0:00:03]}  f5 {[%clk 0:00:06]} 65. Ra3 {[%clk 0:00:03]}  Kf6 {[%clk 0:00:06]} 66. Ra5 {[%clk 0:00:04]}  f4 {[%clk 0:00:06]} 67. Rb5 {[%clk 0:00:02]}  e5 {[%clk 0:00:06]} 68. Kf1 {[%clk 0:00:02]}  Kf5 {[%clk 0:00:07]} 69. Kg1 {[%clk 0:00:02]}  Ra2 {[%clk 0:00:07]} 70. Rb3 {[%clk 0:00:02]}  Ke4 {[%clk 0:00:07]} 71. Kf1 {[%clk 0:00:03]}  f3 {[%clk 0:00:07]} 72. Rb8 {[%clk 0:00:02]}  Kf4 {[%clk 0:00:08]} 73. Rb3 {[%clk 0:00:02]}  e4 {[%clk 0:00:08]} 74. Rb4 {[%clk 0:00:00]}  Ra1+ {[%clk 0:00:08]} 0-1


[Site "https://www.chess.com"]